[Event "4NCL 2019-20"]
[Site "Daventry"]
[Date "2020.01.11"]
[Round "3"]
[White "Eggleston, David J"]
[Black "Ciuksyte, Dagne"]
[Result "1-0"]
[ECO "B82"]
[WhiteElo "2396"]
[BlackElo "2295"]
[Annotator "ChessBase"]
[PlyCount "91"]
[EventDate "2020.01.11"]
[EventCountry "ENG"]
[SourceTitle "playchess.com"]
[Source "ChessBase"]
[SourceQuality "1"]
[TimeControl "40/6000:3000+30"]

1. e4 {[%emt 0:01:34]} c5 {[%emt 0:00:00]} 2. Nf3 {[%emt 0:00:00]} e6 {[%emt 0:00:00]} 3. d4 {[%emt 0:00:25]} cxd4 {[%emt 0:00:00]} 4. Nxd4 {[%emt 0:00:00]} a6 {[%emt 0:00:00]} 5. Nc3 {[%emt 0:00:00]} Qc7 {[%emt 0:00:00]} 6. Bd3 {[%emt 0:00:00]} Nf6 {[%emt 0:00:00]} 7. O-O {[%emt 0:00:00]} Be7 {[%emt 0:00:00]} 8. Be3 {[%emt 0:00:00]} O-O {[%emt 0:07:11]} 9. f4 {[%emt 0:01:35]} d6 {[%emt 0:00:41]} 10. Qf3 {[%emt 0:04:24]} Nc6 {[%emt 0:10:56]} 11. Rae1 {[%emt 0:06:46]} Bd7 {[%emt 0:05:51]} 12. f5 {[%emt 0:04:11]} Ne5 {[%emt 0:06:08]} 13. Qh3 {[%emt 0:03:05]} Neg4 {[%emt 0:13:59]} 14. Kh1 {[%emt 0:01:25]} Nxe3 {[%emt 0:08:21]} 15. Rxe3 {[%emt 0:00:17]} e5 {[%emt 0:03:46]} 16. Nde2 {[%emt 0:02:23]} Bc6 {[%emt 0:08:49]} 17. a4 {[%emt 0:32:05]} b5 {[%emt 0:05:47]} 18. axb5 {[%emt 0:04:13]} axb5 {[%emt 0:00:00]} 19. b4 {[%emt 0:02:17]} Rfd8 {[%emt 0:02:41]} 20. Ng3 {[%emt 0:03:06]} Qb6 {[%emt 0:01:31]} 21. Ref3 {[%emt 0:08:26]} Qd4 {[%emt 0:00:42]} 22. Bxb5 {[%emt 0:00:40]} Bxb5 {[%emt 0:01:02]} 23. Nxb5 {[%emt 0:00:00]} Qxb4 {[%emt 0:00:00]} 24. Nc3 {[%emt 0:05:16]} Rdc8 {[%emt 0:04:22]} 25. Nh5 {[%emt 0:01:56]} Kh8 {[%emt 0:06:58]} 26. Nxf6 {[%emt 0:02:41]} Bxf6 {[%emt 0:00:00]} 27. Nd5 {[%emt 0:00:30]} Qxe4 {[%emt 0:00:24]} 28. Nxf6 {[%emt 0:00:31]} gxf6 {[%emt 0:00:00]} 29. Qh6 {[%emt 0:00:00]} Rg8 {[%emt 0:00:53]} 30. Qxf6+ {[%emt 0:00:00]} Rg7 {[%emt 0:00:00]} 31. Rg3 {[%emt 0:03:07]} Rag8 {[%emt 0:00:00]} 32. Ra1 {[%emt 0:01:13]} Qc6 {[%emt 0:01:23]} 33. c4 {[%emt 0:00:29]} Qc8 {[%emt 0:01:37]} 34. c5 {[%emt 0:01:53]} Qd8 {[%emt 0:04:19]} 35. Qxd6 {[%emt 0:00:00]} Qxd6 {[%emt 0:00:00]} 36. cxd6 {[%emt 0:00:00]} Rxg3 {[%emt 0:00:00]} 37. hxg3 {[%emt 0:00:00]} Kg7 {[%emt 0:00:09]} 38. Rd1 {[%emt 0:03:34]} Kf6 {[%emt 0:01:21]} 39. g4 {[%emt 0:01:25]} h5 {[%emt 0:00:32]} 40. d7 {[%emt 0:00:00]} Rd8 {[%emt 0:00:00]} 41. gxh5 {[%emt 0:50:22]} Kxf5 {[%emt 0:49:56]} 42. Rd6 {[%emt 0:00:00]} e4 {[%emt 0:00:00]} 43. Kg1 {[%emt 0:00:00]} Ke5 {[%emt 0:00:00]} 44. Rd1 {[%emt 0:00:00]} f5 {[%emt 0:00:00]} 45. g3 {[%emt 0:00:00]} Kf6 {[%emt 0:00:00]} 46. h6 {[%emt 0:00:00]} 1-0

[Event "4NCL 2019-20"]
[Site "Daventry"]
[Date "2020.01.11"]
[Round "3"]
[White "Jackson, James P"]
[Black "Hoffmann, Hendrik"]
[Result "1-0"]
[ECO "C63"]
[WhiteElo "2392"]
[BlackElo "2246"]
[Annotator "ChessBase"]
[PlyCount "118"]
[EventDate "2020.01.11"]
[EventCountry "ENG"]
[SourceTitle "playchess.com"]
[Source "ChessBase"]
[SourceQuality "1"]
[TimeControl "40/6000:3000+30"]

1. e4 {[%emt 0:00:00]} e5 {[%emt 0:00:00]} 2. Nf3 {[%emt 0:00:00]} Nc6 {[%emt 0:00:00]} 3. Bb5 {[%emt 0:00:00]} f5 {[%emt 0:00:00]} 4. Nc3 {[%emt 0:00:00]} fxe4 {[%emt 0:00:00]} 5. Nxe4 {[%emt 0:00:00]} Nf6 {[%emt 0:00:00]} 6. Qe2 {[%emt 0:00:00]} d5 {[%emt 0:00:00]} 7. Nxf6+ {[%emt 0:00:00]} gxf6 {[%emt 0:00:00]} 8. d4 {[%emt 0:00:00]} Bg7 {[%emt 0:00:00]} 9. dxe5 {[%emt 0:00:03]} O-O {[%emt 0:00:00]} 10. Bxc6 {[%emt 0:00:00]} bxc6 {[%emt 0:00:00]} 11. e6 {[%emt 0:00:00]} Re8 {[%emt 0:00:00]} 12. O-O Rxe6 {[%emt 0:00:00]} 13. Qd3 {[%emt 0:00:00]} Re4 {[%emt 0:00:00]} 14. Be3 {[%emt 0:11:05]} a5 {[%emt 0:12:20]} 15. Rfe1 {[%emt 0:03:59]} Rb8 {[%emt 0:01:17]} 16. b3 {[%emt 0:01:14]} a4 {[%emt 0:04:07]} 17. Nd2 {[%emt 0:11:18]} Rg4 {[%emt 0:00:36]} 18. f3 {[%emt 0:01:04]} Rg6 {[%emt 0:00:09]} 19. Bd4 {[%emt 0:06:12]} Bh3 {[%emt 0:05:18]} 20. Re2 {[%emt 0:00:22]} Qd6 {[%emt 0:04:02]} 21. Kh1 {[%emt 0:10:54]} Bd7 {[%emt 0:01:36]} 22. Qc3 {[%emt 0:05:20]} axb3 {[%emt 0:11:20]} 23. cxb3 {[%emt 0:03:44]} f5 {[%emt 0:02:43]} 24. Bxg7 {[%emt 0:02:11]} Rxg7 {[%emt 0:08:52]} 25. Rae1 {[%emt 0:00:00]} Qb4 {[%emt 0:01:28]} 26. Qxb4 {[%emt 0:01:50]} Rxb4 {[%emt 0:00:00]} 27. Re7 {[%emt 0:00:00]} Rf7 {[%emt 0:00:00]} 28. Kg1 {[%emt 0:02:31]} Rd4 {[%emt 0:04:23]} 29. Nb1 {[%emt 0:04:21]} f4 {[%emt 0:03:04]} 30. Nc3 {[%emt 0:02:07]} c5 {[%emt 0:08:08]} 31. Rxf7 {[%emt 0:14:53]} Kxf7 {[%emt 0:00:00]} 32. Ne2 {[%emt 0:00:00]} Rd2 {[%emt 0:00:13]} 33. Nxf4 {[%emt 0:01:02]} Rxa2 {[%emt 0:04:18]} 34. Nxd5 {[%emt 0:00:16]} Be6 {[%emt 0:00:01]} 35. Re5 {[%emt 0:00:27]} Rc2 {[%emt 0:01:50]} 36. Nxc7 {[%emt 0:06:24]} Bxb3 {[%emt 0:00:00]} 37. Nb5 {[%emt 0:00:00]} c4 {[%emt 0:04:36]} 38. Re3 {[%emt 0:00:00]} Rd2 {[%emt 0:01:23]} 39. Nc3 {[%emt 0:03:01]} Rc2 {[%emt 0:07:15]} 40. h4 {[%emt 0:00:21]} Rc1+ {[%emt 0:00:01]} 41. Kf2 {[%emt 0:05:42]} Rc2+ {[%emt 0:05:03]} 42. Kg3 {[%emt 0:01:16]} Rd2 {[%emt 0:04:53]} 43. Ne4 {[%emt 0:03:29]} Rb2 {[%emt 0:01:00]} 44. Nc3 {[%emt 0:13:47]} Rd2 {[%emt 0:00:34]} 45. h5 {[%emt 0:01:34]} Bc2 {[%emt 0:01:02]} 46. Re2 {[%emt 0:01:15]} Rxe2 {[%emt 0:04:40]} 47. Nxe2 {[%emt 0:00:02]} Bd3 {[%emt 0:00:45]} 48. Nc3 {[%emt 0:00:06]} Kf6 {[%emt 0:00:12]} 49. Kf4 {[%emt 0:00:07]} h6 {[%emt 0:01:36]} 50. Ne4+ {[%emt 0:05:55]} Kf7 {[%emt 0:00:55]} 51. g4 {[%emt 0:00:27]} Kg7 {[%emt 0:01:45]} 52. Ke3 {[%emt 0:02:13]} Bc2 {[%emt 0:14:07]} 53. Nf2 {[%emt 0:02:35]} c3 {[%emt 0:02:33]} 54. Ne4 {[%emt 0:00:23]} Bxe4 {[%emt 0:00:11]} 55. fxe4 {[%emt 0:00:00]} Kf6 {[%emt 0:00:12]} 56. Kd3 {[%emt 0:00:00]} Ke5 {[%emt 0:00:37]} 57. g5 {[%emt 0:00:46]} hxg5 {[%emt 0:01:40]} 58. h6 {[%emt 0:00:05]} Kf6 {[%emt 0:02:40]} 59. e5+ {[%emt 0:00:05]} Kg6 {[%emt 0:00:19]} 1-0

[Event "4NCL 2019-20"]
[Site "Daventry"]
[Date "2020.01.11"]
[Round "3"]
[White "Milliet, Sophie"]
[Black "Arkell, Keith C"]
[Result "0-1"]
[ECO "B01"]
[WhiteElo "2390"]
[BlackElo "2460"]
[Annotator "ChessBase"]
[PlyCount "114"]
[EventDate "2020.01.11"]
[EventCountry "ENG"]
[SourceTitle "playchess.com"]
[Source "ChessBase"]
[SourceQuality "1"]
[TimeControl "40/6000:3000+30"]

1. e4 {[%emt 0:01:24]} d5 {[%emt 0:00:00]} 2. exd5 {[%emt 0:00:00]} Qxd5 {[%emt 0:00:00]} 3. Nc3 {[%emt 0:00:00]} Qd8 {[%emt 0:00:00]} 4. d4 {[%emt 0:00:00]} Nf6 {[%emt 0:00:00]} 5. Bc4 {[%emt 0:00:00]} c6 {[%emt 0:00:00]} 6. Nf3 {[%emt 0:00:04]} Bf5 {[%emt 0:00:00]} 7. Ne5 {[%emt 0:03:33]} e6 {[%emt 0:00:00]} 8. g4 {[%emt 0:06:14]} Bg6 {[%emt 0:00:00]} 9. h4 {[%emt 0:00:18]} Nbd7 {[%emt 0:00:00]} 10. Qe2 {[%emt 0:10:04]} Bb4 {[%emt 0:00:00]} 11. Rh3 {[%emt 0:02:35]} Nb6 {[%emt 0:27:53]} 12. h5 {[%emt 0:25:01]} Be4 {[%emt 0:09:17]} 13. Bf4 {[%emt 0:05:57]} Nxc4 {[%emt 0:09:45]} 14. Nxc4 {[%emt 0:00:34]} Bg2 {[%emt 0:02:49]} 15. Rd3 {[%emt 0:05:02]} Bd5 {[%emt 0:01:03]} 16. Ne5 {[%emt 0:01:18]} Ne4 {[%emt 0:03:43]} 17. Bd2 {[%emt 0:07:42]} Qh4 {[%emt 0:08:47]} 18. Qf3 {[%emt 0:11:36]} Nd6 {[%emt 0:10:00]} 19. Nxd5 {[%emt 0:02:31]} Bxd2+ {[%emt 0:00:00]} 20. Rxd2 {[%emt 0:00:00]} cxd5 {[%emt 0:00:24]} 21. O-O-O {[%emt 0:00:00]} Qg5 {[%emt 0:03:59]} 22. Qa3 {[%emt 0:07:48]} Rd8 {[%emt 0:01:37]} 23. Qa4+ {[%emt 0:04:13]} b5 {[%emt 0:01:07]} 24. Qxa7 {[%emt 0:00:00]} O-O {[%emt 0:00:00]} 25. Kb1 {[%emt 0:00:00]} Nc4 {[%emt 0:06:29]} 26. Re2 {[%emt 0:00:35]} Nxe5 {[%emt 0:01:48]} 27. Rxe5 {[%emt 0:00:00]} Qxg4 {[%emt 0:00:00]} 28. Rde1 {[%emt 0:00:00]} Ra8 {[%emt 0:00:16]} 29. Qe7 {[%emt 0:00:02]} h6 {[%emt 0:02:06]} 30. Qb4 {[%emt 0:02:24]} Ra4 {[%emt 0:03:35]} 31. Qxb5 {[%emt 0:00:00]} Qxd4 {[%emt 0:00:00]} 32. a3 {[%emt 0:00:13]} Rc4 {[%emt 0:00:50]} 33. R5e2 {[%emt 0:00:02]} Qa7 {[%emt 0:01:39]} 34. Qb3 {[%emt 0:00:03]} Rb8 {[%emt 0:00:00]} 35. Qg3 {[%emt 0:00:00]} Rc7 {[%emt 0:01:04]} 36. Rg1 {[%emt 0:00:00]} Qd4 {[%emt 0:00:00]} 37. c3 {[%emt 0:00:00]} Qxc3 {[%emt 0:00:00]} 38. Qxc3 {[%emt 0:00:07]} Rxc3 {[%emt 0:00:00]} 39. f4 {[%emt 0:00:00]} Rxa3 {[%emt 0:00:08]} 40. Reg2 {[%emt 0:00:00]} g6 {[%emt 0:00:00]} 41. hxg6 {[%emt 0:49:37]} f6 {[%emt 0:05:58]} 42. g7 {[%emt 0:00:00]} Rab3 {[%emt 0:05:09]} 43. Rh1 {[%emt 0:00:00]} R8b7 {[%emt 0:04:56]} 44. Rxh6 {[%emt 0:00:00]} Rxg7 {[%emt 0:00:08]} 45. Rc2 {[%emt 0:00:00]} Rg1+ {[%emt 0:15:09]} 46. Ka2 {[%emt 0:00:00]} Rb6 {[%emt 0:00:07]} 47. Rc8+ {[%emt 0:00:00]} Kg7 {[%emt 0:00:05]} 48. Rhh8 {[%emt 0:00:06]} Rf1 {[%emt 0:03:17]} 49. Rcg8+ {[%emt 0:02:29]} Kf7 {[%emt 0:00:02]} 50. Rg2 {[%emt 0:01:09]} Ke7 {[%emt 0:00:26]} 51. Rh4 {[%emt 0:02:17]} Kd6 {[%emt 0:01:02]} 52. b3 {[%emt 0:00:30]} Rf3 {[%emt 0:02:28]} 53. Rg6 {[%emt 0:00:23]} Rf2+ {[%emt 0:00:33]} 54. Ka3 {[%emt 0:00:13]} Kc5 {[%emt 0:00:34]} 55. b4+ {[%emt 0:00:33]} Kc4 {[%emt 0:00:51]} 56. b5 {[%emt 0:00:51]} Rxb5 {[%emt 0:00:22]} 57. f5+ {[%emt 0:00:06]} d4 {[%emt 0:00:12]} 0-1

[Event "4NCL 2019-20"]
[Site "Daventry"]
[Date "2020.01.11"]
[Round "3"]
[White "Pigott, John C"]
[Black "Maciol, Ryszard"]
[Result "1/2-1/2"]
[ECO "A28"]
[WhiteElo "2370"]
[BlackElo "2158"]
[Annotator "ChessBase"]
[PlyCount "83"]
[EventDate "2020.01.11"]
[EventCountry "ENG"]
[SourceTitle "playchess.com"]
[Source "ChessBase"]
[SourceQuality "1"]
[TimeControl "40/6000:3000+30"]

1. c4 {[%emt 0:00:00]} e5 {[%emt 0:00:00]} 2. Nc3 {[%emt 0:00:00]} Nc6 {[%emt 0:00:00]} 3. e3 {[%emt 0:00:49]} Nf6 {[%emt 0:03:21]} 4. Nf3 {[%emt 0:00:04]} d5 {[%emt 0:01:32]} 5. cxd5 {[%emt 0:00:00]} Nxd5 {[%emt 0:00:00]} 6. Bb5 {[%emt 0:00:00]} Nxc3 {[%emt 0:02:14]} 7. bxc3 {[%emt 0:00:00]} Bd6 {[%emt 0:00:06]} 8. d4 {[%emt 0:00:00]} exd4 {[%emt 0:03:38]} 9. cxd4 {[%emt 0:00:00]} O-O {[%emt 0:00:00]} 10. O-O {[%emt 0:00:00]} Bf5 {[%emt 0:01:12]} 11. Bb2 {[%emt 0:04:55]} Be4 {[%emt 0:17:12]} 12. Rc1 {[%emt 0:24:44]} Qf6 {[%emt 0:18:30]} 13. Be2 {[%emt 0:19:08]} Rfe8 {[%emt 0:05:09]} 14. Nd2 {[%emt 0:10:06]} Qh6 {[%emt 0:14:22]} 15. g3 {[%emt 0:05:01]} Qh3 {[%emt 0:10:23]} 16. Bf3 {[%emt 0:03:51]} Bxf3 {[%emt 0:03:38]} 17. Qxf3 {[%emt 0:00:00]} Nb4 {[%emt 0:01:27]} 18. Nc4 {[%emt 0:10:13]} Bf8 {[%emt 0:00:05]} 19. Qxb7 {[%emt 0:05:02]} Nxa2 {[%emt 0:03:47]} 20. Rb1 {[%emt 0:00:00]} a5 {[%emt 0:04:17]} 21. Qb3 {[%emt 0:04:57]} Nb4 {[%emt 0:01:08]} 22. Ra1 {[%emt 0:00:00]} Ra6 {[%emt 0:01:01]} 23. f3 {[%emt 0:02:05]} Qe6 {[%emt 0:03:34]} 24. e4 {[%emt 0:00:07]} Rea8 {[%emt 0:01:16]} 25. Ra4 {[%emt 0:01:46]} f5 {[%emt 0:00:54]} 26. d5 {[%emt 0:00:38]} Qe8 {[%emt 0:00:00]} 27. d6 {[%emt 0:00:36]} Qf7 {[%emt 0:00:00]} 28. dxc7 {[%emt 0:00:00]} Bc5+ {[%emt 0:00:00]} 29. Kg2 {[%emt 0:00:00]} fxe4 {[%emt 0:00:00]} 30. fxe4 {[%emt 0:01:42]} Qe6 {[%emt 0:00:00]} 31. Nd2 {[%emt 0:00:00]} Qxb3 {[%emt 0:00:00]} 32. Nxb3 {[%emt 0:00:00]} Bd6 {[%emt 0:00:00]} 33. Rc1 {[%emt 0:00:00]} Rc8 {[%emt 0:00:00]} 34. e5 {[%emt 0:00:21]} Bxc7 {[%emt 0:00:00]} 35. Rxa5 {[%emt 0:00:00]} Rxa5 {[%emt 0:00:00]} 36. Nxa5 {[%emt 0:00:00]} Nd3 {[%emt 0:00:00]} 37. Nc6 {[%emt 0:00:00]} Nxc1 {[%emt 0:00:00]} 38. Ne7+ {[%emt 0:00:00]} Kf8 {[%emt 0:00:00]} 39. Nxc8 {[%emt 0:00:00]} Nd3 {[%emt 0:00:00]} 40. Ba3+ {[%emt 0:00:00]} Kf7 {[%emt 0:00:00]} 41. Bd6 {[%emt 0:51:35]} Bxd6 {[%emt 0:03:02]} 42. exd6 {[%emt 0:00:00]} 1/2-1/2

[Event "4NCL 2019-20"]
[Site "Daventry"]
[Date "2020.01.11"]
[Round "3"]
[White "Rendle, Thomas E"]
[Black "Moss, Guy"]
[Result "1/2-1/2"]
[ECO "B23"]
[WhiteElo "2361"]
[BlackElo "2187"]
[Annotator "ChessBase"]
[PlyCount "119"]
[EventDate "2020.01.11"]
[EventCountry "ENG"]
[SourceTitle "playchess.com"]
[Source "ChessBase"]
[SourceQuality "1"]
[TimeControl "40/6000:3000+30"]

1. e4 {[%emt 0:00:00]} c5 {[%emt 0:00:00]} 2. Nc3 {[%emt 0:00:00]} Nc6 {[%emt 0:00:00]} 3. Bb5 {[%emt 0:00:00]} Nd4 {[%emt 0:00:00]} 4. Nf3 {[%emt 0:00:00]} Nxb5 {[%emt 0:00:00]} 5. Nxb5 {[%emt 0:00:00]} d6 {[%emt 0:00:00]} 6. d4 {[%emt 0:00:57]} Bd7 {[%emt 0:03:25]} 7. Nc3 {[%emt 0:05:21]} cxd4 {[%emt 0:00:44]} 8. Qxd4 {[%emt 0:00:00]} e5 {[%emt 0:05:08]} 9. Qd3 {[%emt 0:01:47]} Bc6 {[%emt 0:00:52]} 10. O-O {[%emt 0:05:52]} h6 {[%emt 0:05:42]} 11. Nd2 {[%emt 0:06:40]} Nf6 {[%emt 0:05:19]} 12. Nc4 {[%emt 0:00:31]} Qc7 {[%emt 0:02:31]} 13. Ne3 {[%emt 0:01:35]} Rd8 {[%emt 0:05:17]} 14. Ned5 {[%emt 0:02:12]} Nxd5 {[%emt 0:04:44]} 15. Nxd5 {[%emt 0:00:36]} Bxd5 {[%emt 0:00:00]} 16. Qxd5 {[%emt 0:00:00]} Be7 {[%emt 0:02:32]} 17. Be3 {[%emt 0:07:14]} O-O {[%emt 0:02:38]} 18. Rad1 {[%emt 0:03:38]} a6 {[%emt 0:04:17]} 19. c3 {[%emt 0:06:09]} Qc6 {[%emt 0:08:25]} 20. f4 {[%emt 0:06:31]} exf4 {[%emt 0:03:21]} 21. Bxf4 {[%emt 0:04:16]} Rfe8 {[%emt 0:05:07]} 22. Rd4 {[%emt 0:16:14]} Qxd5 {[%emt 0:06:29]} 23. Rxd5 {[%emt 0:01:04]} Bf6 {[%emt 0:01:40]} 24. Re1 {[%emt 0:00:00]} Re6 {[%emt 0:00:34]} 25. Kf2 {[%emt 0:00:14]} Rde8 {[%emt 0:02:30]} 26. Kf3 {[%emt 0:06:51]} Be5 {[%emt 0:02:28]} 27. Bxe5 {[%emt 0:00:33]} dxe5 {[%emt 0:00:00]} 28. Rd7 {[%emt 0:00:00]} R6e7 {[%emt 0:01:26]} 29. Red1 {[%emt 0:00:00]} f6 {[%emt 0:00:00]} 30. R7d6 {[%emt 0:03:53]} Kf7 {[%emt 0:01:46]} 31. Rb6 {[%emt 0:00:17]} Rc7 {[%emt 0:00:33]} 32. Ke3 {[%emt 0:02:03]} Re6 {[%emt 0:00:41]} 33. Rxe6 {[%emt 0:00:20]} Kxe6 {[%emt 0:00:00]} 34. Rd8 {[%emt 0:00:00]} Ke7 {[%emt 0:05:22]} 35. Rg8 {[%emt 0:00:00]} Kf7 {[%emt 0:00:00]} 36. Rb8 {[%emt 0:00:00]} h5 {[%emt 0:00:00]} 37. h4 {[%emt 0:00:00]} g6 {[%emt 0:00:00]} 38. g3 {[%emt 0:00:03]} f5 {[%emt 0:03:06]} 39. Rh8 {[%emt 0:00:42]} Kg7 {[%emt 0:00:30]} 40. Rd8 {[%emt 0:00:00]} Rf7 {[%emt 0:01:00]} 41. Rd5 {[%emt 0:56:33]} f4+ {[%emt 0:57:02]} 42. Kf3 {[%emt 0:05:56]} fxg3+ {[%emt 0:00:24]} 43. Kxg3 {[%emt 0:00:04]} Rf4 {[%emt 0:02:31]} 44. Rxe5 {[%emt 0:02:00]} Rg4+ {[%emt 0:00:08]} 45. Kh3 {[%emt 0:00:06]} Kf7 {[%emt 0:00:00]} 46. Rc5 {[%emt 0:00:00]} Rxe4 {[%emt 0:00:00]} 47. Rc7+ {[%emt 0:00:00]} Kf6 {[%emt 0:00:00]} 48. Rxb7 {[%emt 0:00:00]} a5 {[%emt 0:00:00]} 49. a3 {[%emt 0:00:00]} Re3+ {[%emt 0:00:00]} 50. Kg2 {[%emt 0:00:00]} Kf5 {[%emt 0:00:00]} 51. Rb6 {[%emt 0:00:00]} Re4 {[%emt 0:00:00]} 52. Kg3 {[%emt 0:00:00]} Re3+ {[%emt 0:00:00]} 53. Kg2 {[%emt 0:00:00]} Re4 {[%emt 0:00:00]} 54. Kf3 {[%emt 0:00:00]} Rxh4 {[%emt 0:00:00]} 55. Rb5+ {[%emt 0:00:00]} Kf6 {[%emt 0:00:00]} 56. Rxa5 {[%emt 0:00:00]} g5 {[%emt 0:00:00]} 57. Ra6+ {[%emt 0:00:00]} Ke5 {[%emt 0:00:00]} 58. Ra5+ {[%emt 0:00:00]} Kf6 {[%emt 0:00:00]} 59. Ra6+ {[%emt 0:00:00]} Ke5 {[%emt 0:00:00]} 60. Ra5+ {[%emt 0:00:00]} 1/2-1/2

[Event "4NCL 2019-20"]
[Site "Daventry"]
[Date "2020.01.11"]
[Round "3"]
[White "Ansell, Simon T"]
[Black "Cyborowski, Lukasz"]
[Result "1-0"]
[ECO "B40"]
[WhiteElo "2334"]
[BlackElo "2505"]
[Annotator "RC"]
[PlyCount "59"]
[EventDate "2020.01.11"]
[EventCountry "ENG"]
[SourceTitle "playchess.com"]
[Source "ChessBase"]
[SourceQuality "1"]
[TimeControl "40/6000:3000+30"]

1. e4 {[%emt 0:02:02]} c5 {[%emt 0:00:02]} 2. Nf3 {[%emt 0:00:04]} e6 {[%emt 0:00:43]} 3. g3 {[%emt 0:01:01]} Nc6 {[%emt 0:00:22]} 4. Bg2 {[%emt 0:00:00]} Nf6 {[%emt 0:00:58]} 5. Qe2 {[%emt 0:00:00]} d5 {[%emt 0:10:11]} 6. exd5 {[%emt 0:01:55]} Nxd5 {[%emt 0:00:00]} 7. O-O {[%emt 0:00:11]} Be7 {[%emt 0:00:22]} 8. Na3 {[%emt 0:04:42]} O-O {[%emt 0:02:16]} 9. Nc4 {[%emt 0:00:37]} Qc7 {[%emt 0:13:24]} 10. d3 {[%emt 0:01:26]} b6 {[%emt 0:02:55]} 11. a4 {[%emt 0:06:04]} Bb7 {[%emt 0:01:08]} 12. Bd2 {[%emt 0:04:35]} Rad8 {[%emt 0:02:27]} 13. a5 {[%emt 0:03:24]} Bf6 {[%emt 0:13:51]} 14. Rfe1 {[%emt 0:06:43]} b5 {[%emt 0:04:37]} 15. Nce5 {[%emt 0:00:16]} Ndb4 {[%emt 0:07:06]} 16. a6 {[%emt 0:09:35]} Ba8 {[%emt 0:02:09]} 17. Ng4 {[%emt 0:17:17]} Be7 {[%emt 0:04:33]} 18. Bf4 {[%emt 0:01:05]} Qb6 {[%emt 0:01:27]} 19. h4 {[%emt 0:01:44]} Nxa6 {[%emt 0:04:06]} 20. h5 {[%emt 0:01:21]} Nab4 {[%emt 0:05:50]} 21. h6 {[%emt 0:02:55]} g6 {[%emt 0:00:00]} 22. Bg5 {[%emt 0:04:43]} Qc7 {[%emt 0:06:19]} 23. Bf6 {[%emt 0:02:02]} Nd5 {[%emt 0:08:27]} 24. Bg7 {[%emt 0:00:21]} b4 {[%emt 0:00:57]} 25. c4 {[%emt 0:01:29]} Nb6 {[%emt 0:00:07]} 26. b3 {[%emt 0:01:11]} Nd7 {[%emt 0:00:57]} 27. Qb2 {[%emt 0:01:40]} Rfe8 {[%emt 0:01:41]} 28. Bh8 {[%emt 0:03:38]} Bf8 {[%emt 0:00:01]} 29. Bf6 {[%emt 0:01:13]} Ne7 {[%emt 0:01:43]} 30. Nfe5 {[%emt 0:03:33]} 1-0

[Event "4NCL 2019-20"]
[Site "Daventry"]
[Date "2020.01.11"]
[Round "3"]
[White "Grieve, Harry"]
[Black "Connell, Blair N"]
[Result "1-0"]
[ECO "C42"]
[WhiteElo "2299"]
[BlackElo "2239"]
[Annotator "ChessBase"]
[PlyCount "81"]
[EventDate "2020.01.11"]
[EventCountry "ENG"]
[SourceTitle "playchess.com"]
[Source "ChessBase"]
[SourceQuality "1"]
[TimeControl "40/6000:3000+30"]

1. e4 {[%emt 0:00:00]} e5 {[%emt 0:07:31]} 2. Nf3 {[%emt 0:00:00]} Nf6 {[%emt 0:01:50]} 3. Nxe5 {[%emt 0:00:00]} d6 {[%emt 0:00:23]} 4. Nf3 {[%emt 0:00:00]} Nxe4 {[%emt 0:00:00]} 5. Nc3 {[%emt 0:00:00]} Nxc3 {[%emt 0:00:29]} 6. dxc3 {[%emt 0:00:00]} Be7 {[%emt 0:01:46]} 7. Be3 {[%emt 0:00:00]} Nc6 {[%emt 0:03:57]} 8. Qd2 {[%emt 0:00:16]} Bf5 {[%emt 0:04:27]} 9. O-O-O {[%emt 0:04:33]} Qd7 {[%emt 0:04:55]} 10. h3 {[%emt 0:07:32]} a6 {[%emt 0:04:18]} 11. Nd4 {[%emt 0:09:33]} Nxd4 {[%emt 0:03:18]} 12. Bxd4 {[%emt 0:00:00]} O-O {[%emt 0:08:41]} 13. Kb1 {[%emt 0:07:44]} Rfe8 {[%emt 0:04:41]} 14. f3 {[%emt 0:04:18]} c5 {[%emt 0:10:58]} 15. Bxc5 {[%emt 0:07:03]} dxc5 {[%emt 0:00:00]} 16. Qd3 {[%emt 0:00:19]} Qd6 17. Qxd6 {[%emt 0:00:00]} Be6 {[%emt 0:00:05]} 18. Qd7 Bxd7 {[%emt 0:00:00]} 19. Rxd7 {[%emt 0:00:00]} Rad8 {[%emt 0:00:00]} 20. Rxd8 {[%emt 0:00:02]} Bxd8 {[%emt 0:04:37]} 21. Bd3 {[%emt 0:02:14]} Bh4 {[%emt 0:01:13]} 22. a4 {[%emt 0:09:40]} a5 {[%emt 0:01:21]} 23. Ka2 {[%emt 0:02:06]} g6 {[%emt 0:03:34]} 24. Kb3 {[%emt 0:01:41]} b6 {[%emt 0:00:29]} 25. Kc4 {[%emt 0:02:56]} Rd8 {[%emt 0:04:34]} 26. Rd1 {[%emt 0:22:16]} Kf8 {[%emt 0:09:39]} 27. Kb5 {[%emt 0:01:27]} Rd6 {[%emt 0:02:05]} 28. Be2 {[%emt 0:00:45]} Rxd1 {[%emt 0:00:11]} 29. Bxd1 {[%emt 0:00:00]} Bd8 {[%emt 0:00:00]} 30. Kc6 {[%emt 0:00:00]} Ke7 {[%emt 0:00:05]} 31. f4 {[%emt 0:00:00]} f5 {[%emt 0:01:06]} 32. Be2 {[%emt 0:02:00]} h6 {[%emt 0:00:00]} 33. Ba6 {[%emt 0:02:50]} Ke6 {[%emt 0:01:29]} 34. Bc8+ {[%emt 0:00:00]} Ke7 {[%emt 0:00:00]} 35. Bd7 {[%emt 0:01:38]} Kf6 {[%emt 0:00:03]} 36. Be8 {[%emt 0:00:15]} g5 {[%emt 0:00:00]} 37. Kd7 {[%emt 0:00:00]} Be7 {[%emt 0:00:00]} 38. fxg5+ {[%emt 0:00:00]} hxg5 {[%emt 0:00:00]} 39. Kc7 {[%emt 0:00:00]} g4 {[%emt 0:00:00]} 40. hxg4 {[%emt 0:00:00]} fxg4 {[%emt 0:00:00]} 41. Kxb6 {[%emt 0:49:35]} 1-0